[Event "EYCC Girls-U18 2019"]
[Site "Bratislava"]
[Date "2019.08.08"]
[Round "7.17"]
[White "Chrysogelou, Athanasia-Panagiota"]
[Black "Maksimovic, Masa"]
[Result "1-0"]
[ECO "A40"]
[WhiteElo "1770"]
[BlackElo "2102"]
[Annotator "NA"]
[PlyCount "137"]
[EventDate "2019.08.02"]
[EventType "swiss"]
[EventCountry "SVK"]
[SourceTitle "playchess.com"]
[Source "ChessBase"]
[SourceQuality "1"]
[TimeControl "40/5400+30:1800+30"]

1. d4 {[%emt 0:00:00]} g6 {[%emt 0:00:00]} 2. c4 {[%emt 0:00:00]} Bg7 {[%emt 0:00:00]} 3. e4 {[%emt 0:00:08]} d6 {[%emt 0:00:00]} 4. Nc3 {[%emt 0:00:19]} e5 {[%emt 0:00:00]} 5. Nge2 {[%emt 0:00:51]} Nc6 {[%emt 0:00:12]} 6. Be3 {[%emt 0:00:50]} exd4 {[%emt 0:08:53]} 7. Nxd4 {[%emt 0:02:53]} Ne5 {[%emt 0:01:07]} 8. Be2 {[%emt 0:03:00]} Nf6 {[%emt 0:01:33]} 9. f3 {[%emt 0:02:30]} O-O {[%emt 0:04:39]} 10. O-O {[%emt 0:00:31]} c6 {[%emt 0:06:58]} 11. Nc2 {[%emt 0:09:55]} Qc7 {[%emt 0:04:04]} 12. Qd2 {[%emt 0:05:42]} Be6 {[%emt 0:00:26]} 13. b3 {[%emt 0:01:01]} Rfd8 {[%emt 0:03:20]} 14. Nd4 {[%emt 0:06:11]} Bd7 {[%emt 0:02:12]} 15. Rac1 {[%emt 0:01:47]} Be8 {[%emt 0:00:58]} 16. Rfd1 {[%emt 0:04:00]} Rac8 {[%emt 0:02:33]} 17. Kh1 {[%emt 0:03:23]} Qb8 {[%emt 0:00:20]} 18. Bg5 {[%emt 0:01:59]} Qc7 {[%emt 0:09:57]} 19. Qf4 {[%emt 0:06:20]} Qe7 {[%emt 0:01:58]} 20. Nc2 {[%emt 0:05:24]} a6 {[%emt 0:05:43]} 21. Qh4 {[%emt 0:04:10]} Ned7 {[%emt 0:12:08]} 22. Ne3 {[%emt 0:03:14]} Rb8 {[%emt 0:07:06]} 23. Ng4 {[%emt 0:05:14]} h5 {[%emt 0:01:07]} 24. Ne3 {[%emt 0:01:31]} Rdc8 {[%emt 0:03:10]} 25. Qf4 {[%emt 0:10:05]} Bf8 {[%emt 0:06:23]} 26. Qg3 {[%emt 0:06:15]} Qe6 {[%emt 0:02:32]} 27. Bf4 {[%emt 0:01:52]} Ne5 {[%emt 0:02:12]} 28. c5 {[%emt 0:05:10]} Nfd7 {[%emt 0:05:05]} 29. Nc4 {[%emt 0:02:56]} h4 {[%emt 0:02:50]} 30. Qxh4 {[%emt 0:01:38]} Nxc5 {[%emt 0:00:17]} 31. Qg3 {[%emt 0:02:02]} Ncd7 {[%emt 0:00:46]} 32. h4 {[%emt 0:02:38]} b5 {[%emt 0:01:26]} 33. Ne3 {[%emt 0:00:54]} Bg7 {[%emt 0:01:28]} 34. b4 Ra8 {[%emt 0:01:20]} 35. h5 {[%emt 0:02:17]} Nf8 {[%emt 0:03:23]} 36. hxg6 Qxg6 {[%emt 0:00:33]} 37. Qh2 {[%emt 0:01:13]} Rd8 {[%emt 0:01:15]} 38. Nf5 {[%emt 0:00:12]} Qe6 {[%emt 0:00:12]} 39. Bg5 {[%emt 0:00:31]} f6 {[%emt 0:00:39]} 40. Bh6 {[%emt 0:00:00]} Bxh6 {[%emt 0:00:00]} 41. Qxh6 {[%emt 0:03:11]} Ra7 {[%emt 0:04:32]} 42. Qe3 {[%emt 0:03:53]} Rh7+ {[%emt 0:02:03]} 43. Kg1 {[%emt 0:00:12]} Bg6 {[%emt 0:15:18]} 44. Qb6 {[%emt 0:03:40]} Nf7 {[%emt 0:02:50]} 45. Ne3 {[%emt 0:06:19]} Qe5 {[%emt 0:03:54]} 46. Ng4 {[%emt 0:00:17]} Qf4 {[%emt 0:01:49]} 47. Qxc6 {[%emt 0:01:47]} Ne5 {[%emt 0:02:09]} 48. Nd5 {[%emt 0:01:52]} Qxg4 {[%emt 0:02:02]} 49. fxg4 {[%emt 0:02:04]} Nxc6 {[%emt 0:00:11]} 50. Nxf6+ {[%emt 0:00:30]} Kg7 {[%emt 0:00:52]} 51. Nxh7 {[%emt 0:00:09]} Nxb4 {[%emt 0:00:26]} 52. Nxf8 {[%emt 0:01:19]} Kxf8 {[%emt 0:00:27]} 53. a3 {[%emt 0:00:31]} Na2 {[%emt 0:00:10]} 54. Rc2 {[%emt 0:00:44]} Bf7 {[%emt 0:00:18]} 55. Rf1 {[%emt 0:01:02]} Kg7 {[%emt 0:00:48]} 56. Rxf7+ {[%emt 0:01:25]} Kxf7 {[%emt 0:00:02]} 57. Rxa2 {[%emt 0:00:08]} Ke6 {[%emt 0:00:26]} 58. Kf2 {[%emt 0:00:56]} Ke5 {[%emt 0:00:03]} 59. Ke3 {[%emt 0:01:49]} Rc8 {[%emt 0:00:04]} 60. Rd2 {[%emt 0:00:57]} Rc3+ {[%emt 0:00:21]} 61. Rd3 {[%emt 0:00:47]} Rc1 {[%emt 0:00:20]} 62. Rd5+ {[%emt 0:00:36]} Ke6 {[%emt 0:00:04]} 63. g5 {[%emt 0:00:15]} Rc3+ {[%emt 0:00:38]} 64. Rd3 {[%emt 0:00:24]} Rc7 {[%emt 0:00:04]} 65. Bg4+ {[%emt 0:00:21]} Ke7 {[%emt 0:00:11]} 66. g6 {[%emt 0:00:24]} Rc6 {[%emt 0:00:55]} 67. Bf5 {[%emt 0:01:00]} a5 {[%emt 0:00:37]} 68. Kf4 {[%emt 0:00:32]} b4 {[%emt 0:00:48]} 69. g7 {[%emt 0:01:06]} 1-0

[Event "EYCC Girls-U18 2019"]
[Site "Bratislava"]
[Date "2019.08.08"]
[Round "7.18"]
[White "Olde, Grete"]
[Black "Hryshchenko, Kamila"]
[Result "0-1"]
[ECO "B06"]
[WhiteElo "1955"]
[BlackElo "2060"]
[Annotator "NA"]
[PlyCount "66"]
[EventDate "2019.08.02"]
[EventType "swiss"]
[EventCountry "SVK"]
[SourceTitle "playchess.com"]
[Source "ChessBase"]
[SourceQuality "1"]
[TimeControl "40/5400+30:1800+30"]

1. e4 {[%emt 0:00:00]} g6 {[%emt 0:00:00]} 2. d4 {[%emt 0:00:00]} Bg7 {[%emt 0:00:00]} 3. Nf3 {[%emt 0:00:06]} d6 {[%emt 0:00:00]} 4. Bc4 {[%emt 0:00:17]} e6 {[%emt 0:00:33]} 5. O-O {[%emt 0:00:30]} Ne7 {[%emt 0:00:10]} 6. Nc3 {[%emt 0:01:53]} O-O {[%emt 0:01:04]} 7. Re1 {[%emt 0:03:21]} Nd7 {[%emt 0:01:10]} 8. h3 {[%emt 0:01:56]} a6 {[%emt 0:00:49]} 9. a4 {[%emt 0:02:59]} b6 {[%emt 0:03:00]} 10. Nh2 {[%emt 0:06:12]} e5 {[%emt 0:08:49]} 11. Bg5 {[%emt 0:09:58]} h6 {[%emt 0:02:19]} 12. Be3 {[%emt 0:01:28]} Kh7 {[%emt 0:07:31]} 13. f4 {[%emt 0:07:42]} f5 {[%emt 0:09:11]} 14. fxe5 {[%emt 0:09:02]} dxe5 {[%emt 0:00:19]} 15. d5 {[%emt 0:02:02]} Nf6 {[%emt 0:11:12]} 16. exf5 {[%emt 0:05:00]} gxf5 {[%emt 0:00:50]} 17. Bf2 {[%emt 0:02:08]} Ng6 {[%emt 0:05:20]} 18. Nf3 {[%emt 0:05:37]} Ne8 {[%emt 0:02:02]} 19. h4 {[%emt 0:04:24]} Nd6 {[%emt 0:04:54]} 20. Bb3 {[%emt 0:03:27]} e4 {[%emt 0:11:44]} 21. h5 {[%emt 0:02:22]} Nf4 {[%emt 0:01:04]} 22. Be3 {[%emt 0:06:28]} Nxh5 {[%emt 0:03:31]} 23. Nd4 {[%emt 0:02:33]} Qh4 {[%emt 0:00:55]} 24. Bf2 {[%emt 0:02:12]} Qg5 {[%emt 0:05:26]} 25. Re3 {[%emt 0:05:29]} Bxd4 {[%emt 0:05:37]} 26. Qxd4 {[%emt 0:00:10]} Rg8 {[%emt 0:00:14]} 27. g3 {[%emt 0:03:03]} Qg6 {[%emt 0:02:38]} 28. Kf1 {[%emt 0:02:26]} f4 {[%emt 0:02:42]} 29. gxf4 {[%emt 0:02:21]} Nf5 {[%emt 0:00:27]} 30. Qxe4 {[%emt 0:00:55]} Nxe3+ {[%emt 0:00:06]} 31. Qxe3 {[%emt 0:00:56]} Re8 {[%emt 0:00:19]} 32. Qf3 {[%emt 0:00:54]} Bg4 {[%emt 0:00:18]} 33. Qh1 {[%emt 0:00:56]} Nxf4 {[%emt 0:00:14]} 0-1

[Event "EYCC Girls-U18 2019"]
[Site "Bratislava"]
[Date "2019.08.08"]
[Round "7.19"]
[White "Moscicka, Pola"]
[Black "Poliakova, Varvara"]
[Result "0-1"]
[ECO "C77"]
[WhiteElo "1870"]
[BlackElo "1872"]
[Annotator "NA"]
[PlyCount "116"]
[EventDate "2019.08.02"]
[EventType "swiss"]
[EventCountry "SVK"]
[SourceTitle "playchess.com"]
[Source "ChessBase"]
[SourceQuality "1"]
[TimeControl "40/5400+30:1800+30"]

1. e4 {[%emt 0:00:00]} e5 {[%emt 0:00:00]} 2. Nf3 {[%emt 0:00:00]} Nc6 {[%emt 0:00:00]} 3. Bb5 {[%emt 0:00:00]} a6 {[%emt 0:00:00]} 4. Ba4 {[%emt 0:00:00]} Nf6 {[%emt 0:00:00]} 5. d3 {[%emt 0:00:00]} d6 {[%emt 0:00:06]} 6. O-O {[%emt 0:00:25]} g6 {[%emt 0:00:48]} 7. c3 {[%emt 0:03:16]} Bg7 {[%emt 0:00:13]} 8. Re1 {[%emt 0:04:22]} O-O {[%emt 0:01:23]} 9. Bg5 {[%emt 0:00:56]} h6 {[%emt 0:02:38]} 10. Bh4 {[%emt 0:01:34]} Re8 {[%emt 0:02:31]} 11. Nbd2 {[%emt 0:01:40]} b5 {[%emt 0:01:29]} 12. Bc2 {[%emt 0:00:44]} Bb7 {[%emt 0:01:10]} 13. Nf1 {[%emt 0:04:38]} Qd7 {[%emt 0:09:03]} 14. Qd2 {[%emt 0:03:59]} Nh5 {[%emt 0:02:23]} 15. Ne3 {[%emt 0:03:08]} Nd8 {[%emt 0:04:18]} 16. Bg3 {[%emt 0:21:51]} Ne6 {[%emt 0:06:03]} 17. d4 {[%emt 0:06:48]} Rad8 {[%emt 0:05:03]} 18. Bh4 {[%emt 0:11:43]} exd4 {[%emt 0:04:21]} 19. cxd4 {[%emt 0:01:39]} Rb8 {[%emt 0:01:30]} 20. d5 {[%emt 0:07:33]} Nc5 {[%emt 0:02:52]} 21. Nd1 {[%emt 0:02:13]} Kh7 {[%emt 0:04:01]} 22. Rb1 {[%emt 0:04:20]} b4 {[%emt 0:08:37]} 23. Bg3 {[%emt 0:05:21]} Nf6 {[%emt 0:04:23]} 24. Qf4 {[%emt 0:04:07]} Kg8 {[%emt 0:02:21]} 25. b3 {[%emt 0:07:10]} g5 {[%emt 0:01:41]} 26. Qf5 {[%emt 0:03:19]} Qxf5 {[%emt 0:00:25]} 27. exf5 {[%emt 0:00:01]} Bxd5 {[%emt 0:00:32]} 28. Ne3 {[%emt 0:00:37]} Be4 {[%emt 0:00:53]} 29. Bxe4 {[%emt 0:00:55]} Nfxe4 {[%emt 0:02:06]} 30. Nd5 {[%emt 0:01:27]} Rbc8 {[%emt 0:03:46]} 31. Rbd1 {[%emt 0:01:06]} Bc3 {[%emt 0:02:10]} 32. Re3 {[%emt 0:00:24]} Kf8 {[%emt 0:04:26]} 33. a3 {[%emt 0:00:16]} a5 {[%emt 0:00:14]} 34. axb4 {[%emt 0:00:32]} axb4 {[%emt 0:00:02]} 35. Nd4 {[%emt 0:00:27]} c6 {[%emt 0:07:33]} 36. Nb6 {[%emt 0:00:17]} Rb8 {[%emt 0:02:37]} 37. Rxe4 {[%emt 0:00:32]} Nxe4 {[%emt 0:00:02]} 38. Nd7+ {[%emt 0:00:05]} Kg8 {[%emt 0:00:48]} 39. Nxb8 {[%emt 0:00:07]} Rxb8 {[%emt 0:05:36]} 40. Nxc6 {[%emt 0:00:00]} Ra8 {[%emt 0:00:00]} 41. f3 {[%emt 0:02:57]} Nxg3 {[%emt 0:03:45]} 42. hxg3 {[%emt 0:01:35]} Ra3 {[%emt 0:00:37]} 43. Rxd6 {[%emt 0:02:58]} Rxb3 {[%emt 0:01:52]} 44. Ne7+ {[%emt 0:02:38]} Kh7 {[%emt 0:01:22]} 45. Nd5 {[%emt 0:00:58]} Be5 {[%emt 0:01:49]} 46. Nf6+ {[%emt 0:01:27]} Kg7 {[%emt 0:03:49]} 47. Nh5+ {[%emt 0:00:15]} Kf8 {[%emt 0:00:39]} 48. Rd5 {[%emt 0:00:25]} Rb1+ {[%emt 0:00:35]} 49. Kh2 {[%emt 0:00:37]} f6 {[%emt 0:00:07]} 50. f4 {[%emt 0:00:49]} Bc3 {[%emt 0:00:09]} 51. Rc5 {[%emt 0:04:52]} Ba1 {[%emt 0:01:11]} 52. Rc7 {[%emt 0:01:09]} b3 {[%emt 0:02:55]} 53. Ng7 {[%emt 0:00:26]} Re1 {[%emt 0:03:29]} 54. Ne6+ {[%emt 0:06:52]} Ke8 {[%emt 0:00:54]} 55. fxg5 {[%emt 0:06:01]} hxg5 {[%emt 0:00:27]} 56. Ng7+ {[%emt 0:02:37]} Kd8 {[%emt 0:00:07]} 57. Rb7 {[%emt 0:01:22]} b2 {[%emt 0:00:23]} 58. Ne6+ {[%emt 0:00:10]} Kc8 {[%emt 0:00:10]} 0-1

[Event "EYCC Girls-U18 2019"]
[Site "Bratislava"]
[Date "2019.08.08"]
[Round "7.20"]
[White "Kostecka, Marika"]
[Black "Kulpa, Zuzanna"]
[Result "0-1"]
[ECO "C93"]
[WhiteElo "1924"]
[BlackElo "1802"]
[Annotator "NA"]
[PlyCount "148"]
[EventDate "2019.08.02"]
[EventType "swiss"]
[EventCountry "SVK"]
[SourceTitle "playchess.com"]
[Source "ChessBase"]
[SourceQuality "1"]
[TimeControl "40/5400+30:1800+30"]

1. e4 {[%emt 0:00:00]} e5 {[%emt 0:00:00]} 2. Nf3 {[%emt 0:00:00]} Nc6 {[%emt 0:00:00]} 3. Bb5 {[%emt 0:00:00]} a6 {[%emt 0:00:00]} 4. Ba4 {[%emt 0:00:00]} Nf6 {[%emt 0:00:00]} 5. O-O {[%emt 0:00:00]} Be7 {[%emt 0:00:04]} 6. Re1 {[%emt 0:00:03]} b5 {[%emt 0:00:07]} 7. Bb3 {[%emt 0:00:05]} d6 {[%emt 0:00:09]} 8. c3 {[%emt 0:00:07]} O-O {[%emt 0:00:08]} 9. h3 {[%emt 0:00:03]} h6 {[%emt 0:00:14]} 10. d4 {[%emt 0:01:27]} Re8 {[%emt 0:00:08]} 11. Nbd2 {[%emt 0:04:46]} Bf8 {[%emt 0:00:20]} 12. Nf1 {[%emt 0:09:38]} Bd7 {[%emt 0:02:10]} 13. Ng3 {[%emt 0:01:48]} Na5 {[%emt 0:00:14]} 14. Bc2 {[%emt 0:00:20]} c5 {[%emt 0:00:14]} 15. b3 {[%emt 0:08:31]} Nc6 {[%emt 0:00:48]} 16. Be3 {[%emt 0:03:24]} Rb8 {[%emt 0:05:53]} 17. Qd2 {[%emt 0:12:15]} a5 {[%emt 0:04:28]} 18. d5 {[%emt 0:02:47]} Ne7 {[%emt 0:00:13]} 19. b4 {[%emt 0:01:03]} c4 {[%emt 0:09:30]} 20. a4 {[%emt 0:01:02]} axb4 {[%emt 0:02:17]} 21. cxb4 {[%emt 0:00:21]} Qc7 {[%emt 0:02:33]} 22. Qc3 {[%emt 0:03:22]} Rb7 {[%emt 0:04:40]} 23. axb5 {[%emt 0:04:01]} Bxb5 {[%emt 0:00:37]} 24. Ba4 {[%emt 0:03:31]} Qd7 {[%emt 0:03:13]} 25. Bxb5 {[%emt 0:03:32]} Qxb5 {[%emt 0:00:08]} 26. Bd2 {[%emt 0:02:45]} Rc8 {[%emt 0:03:34]} 27. Ra5 {[%emt 0:01:14]} Qd7 {[%emt 0:01:58]} 28. Rb1 {[%emt 0:08:46]} Qc7 {[%emt 0:03:28]} 29. b5 {[%emt 0:05:19]} Nd7 {[%emt 0:06:09]} 30. Be3 {[%emt 0:00:13]} Nc5 {[%emt 0:03:06]} 31. Bxc5 {[%emt 0:00:38]} Qxc5 {[%emt 0:00:06]} 32. b6 {[%emt 0:00:09]} Rxb6 {[%emt 0:00:41]} 33. Rxc5 {[%emt 0:08:55]} Rxb1+ {[%emt 0:00:11]} 34. Nf1 {[%emt 0:00:02]} Rxc5 {[%emt 0:00:12]} 35. N3d2 {[%emt 0:00:04]} Rb8 {[%emt 0:04:01]} 36. Nxc4 {[%emt 0:00:46]} Rbc8 {[%emt 0:02:14]} 37. Nfd2 {[%emt 0:04:32]} Ng6 {[%emt 0:07:58]} 38. g3 {[%emt 0:02:42]} Be7 {[%emt 0:02:39]} 39. Qb3 {[%emt 0:02:17]} Nf8 {[%emt 0:07:27]} 40. Qa4 {[%emt 0:00:00]} f5 {[%emt 0:00:00]} 41. f3 {[%emt 0:10:41]} fxe4 {[%emt 0:09:51]} 42. fxe4 {[%emt 0:00:07]} Bg5 {[%emt 0:00:42]} 43. Nxd6 {[%emt 0:11:42]} Bxd2 {[%emt 0:06:06]} 44. Nxc8 {[%emt 0:01:04]} Rxc8 {[%emt 0:01:59]} 45. Kf2 {[%emt 0:03:34]} Bg5 {[%emt 0:02:42]} 46. Qa6 {[%emt 0:01:14]} Rd8 {[%emt 0:04:30]} 47. Kf3 {[%emt 0:03:45]} Be7 {[%emt 0:08:04]} 48. Qb7 {[%emt 0:02:55]} Kf7 {[%emt 0:01:11]} 49. Qc7 {[%emt 0:00:29]} Rd6 {[%emt 0:01:25]} 50. h4 {[%emt 0:01:38]} h5 {[%emt 0:03:04]} 51. Ke2 {[%emt 0:02:11]} Nd7 {[%emt 0:03:53]} 52. Ke3 {[%emt 0:01:31]} Nf6 {[%emt 0:00:13]} 53. Kf3 {[%emt 0:00:44]} Ng4 {[%emt 0:01:45]} 54. Ke2 {[%emt 0:01:07]} Rf6 {[%emt 0:02:24]} 55. Kd3 {[%emt 0:01:41]} Rf3+ {[%emt 0:03:31]} 56. Kc4 {[%emt 0:00:47]} Rf6 {[%emt 0:04:08]} 57. Kd3 {[%emt 0:00:07]} Ra6 {[%emt 0:01:40]} 58. Ke2 {[%emt 0:00:55]} Ra2+ {[%emt 0:00:47]} 59. Kd3 {[%emt 0:00:51]} Ra3+ {[%emt 0:04:10]} 60. Kc4 {[%emt 0:00:40]} Ra6 {[%emt 0:04:41]} 61. Kd3 {[%emt 0:00:25]} Rd6 {[%emt 0:00:29]} 62. Ke2 {[%emt 0:00:23]} Nf6 {[%emt 0:00:07]} 63. Kf3 {[%emt 0:00:24]} Ne8 {[%emt 0:00:21]} 64. Qc8 {[%emt 0:00:47]} Rf6+ {[%emt 0:00:51]} 65. Ke3 {[%emt 0:01:01]} Nd6 {[%emt 0:00:30]} 66. Qc7 {[%emt 0:00:17]} Rf1 {[%emt 0:00:36]} 67. Qd7 {[%emt 0:00:53]} Re1+ {[%emt 0:00:39]} 68. Kf3 {[%emt 0:00:33]} Rxe4 {[%emt 0:00:20]} 69. Qe6+ {[%emt 0:00:06]} Kf8 {[%emt 0:00:04]} 70. Qg6 {[%emt 0:00:04]} Rd4 {[%emt 0:01:23]} 71. Qxh5 {[%emt 0:00:21]} Rxd5 {[%emt 0:00:25]} 72. Qh8+ {[%emt 0:00:18]} Kf7 {[%emt 0:00:07]} 73. Qh5+ {[%emt 0:00:39]} Kg8 {[%emt 0:00:32]} 74. g4 {[%emt 0:00:25]} e4+ {[%emt 0:00:11]} 0-1

[Event "EYCC Girls-U18 2019"]
[Site "Bratislava"]
[Date "2019.08.08"]
[Round "7.21"]
[White "Buchta, Agnieszka"]
[Black "Urh, Zala"]
[Result "1/2-1/2"]
[ECO "C77"]
[WhiteElo "1818"]
[BlackElo "2072"]
[Annotator "NA"]
[PlyCount "73"]
[EventDate "2019.08.02"]
[EventType "swiss"]
[EventCountry "SVK"]
[SourceTitle "playchess.com"]
[Source "ChessBase"]
[SourceQuality "1"]
[TimeControl "40/5400+30:1800+30"]

1. e4 {[%emt 0:00:00]} e5 {[%emt 0:00:00]} 2. Nf3 {[%emt 0:00:00]} Nc6 {[%emt 0:00:00]} 3. Bb5 {[%emt 0:00:00]} a6 {[%emt 0:01:37]} 4. Ba4 {[%emt 0:00:00]} Nf6 {[%emt 0:00:22]} 5. d3 {[%emt 0:00:18]} b5 {[%emt 0:00:38]} 6. Bb3 {[%emt 0:00:11]} Be7 {[%emt 0:00:48]} 7. c3 {[%emt 0:01:12]} O-O {[%emt 0:01:49]} 8. O-O {[%emt 0:00:53]} d6 {[%emt 0:05:50]} 9. Nbd2 {[%emt 0:01:58]} Na5 {[%emt 0:00:25]} 10. Bc2 {[%emt 0:00:19]} c5 {[%emt 0:00:20]} 11. Re1 {[%emt 0:01:10]} Nc6 {[%emt 0:00:46]} 12. Nf1 {[%emt 0:01:12]} Re8 {[%emt 0:03:13]} 13. Bg5 {[%emt 0:06:57]} h6 {[%emt 0:02:01]} 14. Bxf6 {[%emt 0:01:50]} Bxf6 {[%emt 0:00:09]} 15. Ne3 {[%emt 0:00:24]} Be6 {[%emt 0:04:46]} 16. Bb3 {[%emt 0:06:20]} Qd7 {[%emt 0:03:44]} 17. Bd5 {[%emt 0:08:00]} Rac8 {[%emt 0:02:52]} 18. Bxc6 {[%emt 0:14:07]} Qxc6 {[%emt 0:01:52]} 19. Nd2 {[%emt 0:16:40]} c4 {[%emt 0:08:32]} 20. Ndf1 {[%emt 0:12:13]} Red8 {[%emt 0:06:06]} 21. Qc2 {[%emt 0:01:14]} cxd3 {[%emt 0:07:00]} 22. Qxd3 {[%emt 0:00:17]} d5 {[%emt 0:00:25]} 23. exd5 {[%emt 0:03:20]} Bxd5 {[%emt 0:00:07]} 24. Nxd5 {[%emt 0:00:27]} Rxd5 {[%emt 0:00:40]} 25. Qf3 {[%emt 0:02:10]} Rcd8 {[%emt 0:08:59]} 26. Ne3 {[%emt 0:05:15]} R5d6 {[%emt 0:00:19]} 27. Qxc6 {[%emt 0:01:00]} Rxc6 {[%emt 0:00:04]} 28. Red1 {[%emt 0:00:38]} Rcd6 {[%emt 0:01:10]} 29. Rxd6 {[%emt 0:04:03]} Rxd6 {[%emt 0:00:05]} 30. Rd1 {[%emt 0:00:12]} Rxd1+ {[%emt 0:01:07]} 31. Nxd1 {[%emt 0:00:02]} Bg5 {[%emt 0:00:48]} 32. Kf1 {[%emt 0:06:16]} Kf8 {[%emt 0:03:14]} 33. Ke2 {[%emt 0:00:54]} Ke7 {[%emt 0:00:24]} 34. Kd3 {[%emt 0:01:42]} f5 {[%emt 0:03:03]} 35. f3 {[%emt 0:01:48]} Ke6 {[%emt 0:01:13]} 36. c4 {[%emt 0:02:53]} Kd6 {[%emt 0:04:07]} 37. b4 {[%emt 0:01:46]} 1/2-1/2

[Event "EYCC Girls-U18 2019"]
[Site "Bratislava"]
[Date "2019.08.08"]
[Round "7.22"]
[White "Smetisko, Marija"]
[Black "Ciocan, Maria-Alexandra"]
[Result "1/2-1/2"]
[ECO "C01"]
[WhiteElo "1814"]
[BlackElo "2062"]
[Annotator "NA"]
[PlyCount "100"]
[EventDate "2019.08.02"]
[EventType "swiss"]
[EventCountry "SVK"]
[SourceTitle "playchess.com"]
[Source "ChessBase"]
[SourceQuality "1"]
[TimeControl "40/5400+30:1800+30"]

1. e4 {[%emt 0:00:00]} e6 {[%emt 0:00:00]} 2. d4 {[%emt 0:00:00]} d5 {[%emt 0:00:00]} 3. exd5 {[%emt 0:00:00]} exd5 {[%emt 0:00:00]} 4. Nc3 {[%emt 0:00:00]} c6 {[%emt 0:00:00]} 5. Bd3 {[%emt 0:00:00]} Bd6 {[%emt 0:02:16]} 6. Nge2 {[%emt 0:03:29]} Qc7 {[%emt 0:00:14]} 7. Ng3 {[%emt 0:02:01]} Ne7 {[%emt 0:04:12]} 8. Nh5 {[%emt 0:02:59]} O-O {[%emt 0:07:07]} 9. Qf3 {[%emt 0:14:30]} Ng6 {[%emt 0:02:30]} 10. Ne2 {[%emt 0:05:30]} Nh4 {[%emt 0:15:20]} 11. Nf6+ {[%emt 0:02:30]} gxf6 {[%emt 0:02:21]} 12. Bxh7+ {[%emt 0:07:30]} Kxh7 {[%emt 0:04:46]} 13. Qh5+ {[%emt 0:01:33]} Kg8 {[%emt 0:00:24]} 14. Qxh4 {[%emt 0:00:55]} Qe7 {[%emt 0:03:45]} 15. Bh6 {[%emt 0:07:32]} Re8 {[%emt 0:02:12]} 16. O-O-O {[%emt 0:02:01]} Qe4 {[%emt 0:16:23]} 17. Nf4 {[%emt 0:04:48]} Bxf4+ {[%emt 0:07:15]} 18. Bxf4 {[%emt 0:01:11]} Qh7 {[%emt 0:04:57]} 19. Qg3+ {[%emt 0:04:04]} Kh8 {[%emt 0:04:06]} 20. Bxb8 {[%emt 0:02:01]} Bf5 {[%emt 0:00:23]} 21. Bd6 {[%emt 0:07:45]} Bxc2 {[%emt 0:05:58]} 22. Rd2 {[%emt 0:04:32]} Bf5 {[%emt 0:00:30]} 23. h4 {[%emt 0:06:21]} Re6 {[%emt 0:03:05]} 24. Bf4 {[%emt 0:03:25]} Rc8 {[%emt 0:00:59]} 25. Be3 {[%emt 0:03:51]} b6 {[%emt 0:01:14]} 26. h5 {[%emt 0:01:19]} Bb1 {[%emt 0:01:42]} 27. h6 {[%emt 0:01:21]} Rg8 {[%emt 0:01:24]} 28. Qg7+ {[%emt 0:04:32]} Rxg7 {[%emt 0:04:59]} 29. hxg7+ {[%emt 0:00:05]} Kxg7 {[%emt 0:00:07]} 30. Rxh7+ {[%emt 0:00:13]} Bxh7 {[%emt 0:00:03]} 31. b4 {[%emt 0:01:12]} Be4 {[%emt 0:00:22]} 32. Rd1 {[%emt 0:04:12]} Kf8 {[%emt 0:00:35]} 33. f3 {[%emt 0:01:35]} Bg6 {[%emt 0:00:19]} 34. Bf2 {[%emt 0:00:30]} Re2 {[%emt 0:00:57]} 35. Rd2 {[%emt 0:00:03]} Re8 {[%emt 0:00:14]} 36. Bg3 {[%emt 0:01:46]} Kg7 {[%emt 0:03:10]} 37. Kd1 {[%emt 0:00:55]} Bf5 {[%emt 0:02:36]} 38. Re2 {[%emt 0:01:18]} Be6 {[%emt 0:00:12]} 39. Re3 {[%emt 0:01:01]} a5 {[%emt 0:02:09]} 40. bxa5 {[%emt 0:00:00]} bxa5 {[%emt 0:00:00]} 41. Ra3 {[%emt 0:06:50]} Ra8 {[%emt 0:01:50]} 42. Ra4 {[%emt 0:01:40]} Bd7 {[%emt 0:08:57]} 43. Be1 {[%emt 0:00:03]} c5 {[%emt 0:01:09]} 44. Rxa5 {[%emt 0:01:09]} Rxa5 {[%emt 0:00:09]} 45. Bxa5 {[%emt 0:00:03]} cxd4 {[%emt 0:02:40]} 46. Kc2 {[%emt 0:03:32]} Bb5 {[%emt 0:00:16]} 47. a3 {[%emt 0:04:11]} f5 {[%emt 0:02:31]} 48. Bb6 {[%emt 0:02:25]} d3+ {[%emt 0:01:22]} 49. Kc3 {[%emt 0:01:20]} Kf6 {[%emt 0:00:27]} 50. Be3 {[%emt 0:02:28]} Ke5 1/2-1/2

[Event "EYCC Girls-U18 2019"]
[Site "Bratislava"]
[Date "2019.08.08"]
[Round "7.23"]
[White "Koljevic, Nikolina"]
[Black "Kouta, Antonia"]
[Result "1/2-1/2"]
[ECO "B91"]
[WhiteElo "1960"]
[BlackElo "1762"]
[Annotator "NA"]
[PlyCount "77"]
[EventDate "2019.08.02"]
[EventType "swiss"]
[EventCountry "SVK"]
[SourceTitle "playchess.com"]
[Source "ChessBase"]
[SourceQuality "1"]
[TimeControl "40/5400+30:1800+30"]

1. e4 {[%emt 0:00:00]} c5 {[%emt 0:00:00]} 2. Nf3 {[%emt 0:00:00]} d6 {[%emt 0:00:00]} 3. d4 {[%emt 0:00:00]} cxd4 {[%emt 0:00:00]} 4. Nxd4 {[%emt 0:00:00]} Nf6 {[%emt 0:00:00]} 5. Nc3 {[%emt 0:00:00]} a6 {[%emt 0:00:09]} 6. g3 {[%emt 0:00:00]} e5 {[%emt 0:00:13]} 7. Nde2 {[%emt 0:00:11]} Be7 {[%emt 0:00:39]} 8. Bg2 {[%emt 0:00:11]} b5 {[%emt 0:04:41]} 9. O-O {[%emt 0:06:15]} Nbd7 {[%emt 0:02:58]} 10. Nd5 {[%emt 0:03:35]} Nb6 {[%emt 0:17:16]} 11. b3 {[%emt 0:05:50]} Nfxd5 {[%emt 0:08:30]} 12. exd5 {[%emt 0:00:03]} O-O {[%emt 0:02:05]} 13. Bb2 {[%emt 0:02:23]} Bf6 {[%emt 0:08:03]} 14. h3 {[%emt 0:03:46]} Qc7 {[%emt 0:01:18]} 15. Qd2 {[%emt 0:01:52]} Bb7 {[%emt 0:02:13]} 16. g4 {[%emt 0:09:20]} a5 {[%emt 0:05:14]} 17. Nc3 {[%emt 0:03:03]} b4 {[%emt 0:02:47]} 18. Ne4 {[%emt 0:00:21]} Be7 {[%emt 0:06:51]} 19. Ng3 {[%emt 0:00:49]} Rfc8 {[%emt 0:04:09]} 20. Be4 {[%emt 0:02:38]} a4 {[%emt 0:01:48]} 21. Rad1 {[%emt 0:02:06]} axb3 {[%emt 0:01:49]} 22. axb3 {[%emt 0:03:49]} Qc5 {[%emt 0:01:41]} 23. Bxe5 {[%emt 0:05:56]} dxe5 {[%emt 0:01:50]} 24. d6 {[%emt 0:00:06]} Rd8 {[%emt 0:08:25]} 25. Bxb7 {[%emt 0:01:37]} Rxd6 {[%emt 0:11:31]} 26. Qe2 {[%emt 0:03:14]} Rxd1 {[%emt 0:00:39]} 27. Rxd1 {[%emt 0:00:41]} Rd8 {[%emt 0:01:38]} 28. Re1 {[%emt 0:08:39]} f6 {[%emt 0:02:19]} 29. g5 {[%emt 0:03:50]} Nd5 {[%emt 0:01:07]} 30. Bxd5+ {[%emt 0:02:29]} Qxd5 {[%emt 0:00:50]} 31. Nf5 {[%emt 0:00:50]} Qd7 {[%emt 0:00:56]} 32. Nxe7+ {[%emt 0:03:58]} Qxe7 {[%emt 0:00:02]} 33. gxf6 {[%emt 0:00:06]} gxf6 {[%emt 0:00:16]} 34. Kh2 {[%emt 0:01:32]} Qd6 {[%emt 0:02:23]} 35. Rg1+ {[%emt 0:02:00]} Kh8 {[%emt 0:00:15]} 36. Qg4 {[%emt 0:00:26]} Qe7 {[%emt 0:00:46]} 37. h4 {[%emt 0:01:05]} Qf8 {[%emt 0:00:58]} 38. Rd1 {[%emt 0:05:33]} Rxd1 {[%emt 0:00:54]} 39. Qxd1 {[%emt 0:00:02]} 1/2-1/2